bitfinex/quotes_SOLUSD_20250609
["timestamp","ask_amount","ask_price","bid_price","bid_amount"]
[1749493343819,18.93122199,156.53,156.48,18.93324527]
[1749493343998,4.77901421,156.52,156.48,18.93324527]
[1749493344303,4.77901421,156.51,156.48,18.93324527]
[1749493344505,18.93122199,156.53,156.48,18.93324527]
[1749493344705,4.77910218,156.52,156.48,18.93324527]
[1749493344904,4.77910218,156.51,156.48,18.93324527]
[1749493345100,18.93122199,156.53,156.48,18.93324527]
[1749493345305,4.77913422,156.52,156.48,18.93324527]
[1749493345503,4.77913422,156.51,156.48,18.93324527]
[1749493345703,18.93122199,156.53,156.48,18.93324527]
[1749493346004,4.77936925,156.52,156.49,12.54267028]
[1749493346208,18.93083617,156.54,156.49,12.54267028]
[1749493346407,4.778871,156.53,156.49,12.54267028]
[1749493346608,18.93083617,156.54,156.49,12.54267028]
[1749493346805,4.7790139,156.53,156.49,12.54267028]
[1749493347008,18.93083617,156.54,156.49,12.54267028]
[1749493347205,4.77904949,156.53,156.49,12.54267028]
[1749493347403,18.93083617,156.54,156.49,18.9325539]
[1749493347596,4.77932655,156.53,156.5,12.54267028]
[1749493347803,12.54267028,156.55,156.5,12.54267028]
[1749493348101,4.7789296,156.54,156.5,12.54267028]
[1749493348295,4.7789296,156.54,156.49,6.38988362]
[1749493348296,46.0525687,156.58,156.53,12.54267028]
[1749493348510,4.77868874,156.57,156.53,12.54267028]
[1749493348711,4.77868874,156.56,156.53,12.54267028]
[1749493348910,4.77868874,156.55,156.53,12.54267028]
[1749493349107,46.46901908,156.58,156.53,12.54267028]
[1749493349312,4.77794715,156.57,156.53,12.54267028]
[1749493349515,4.77794715,156.56,156.53,12.54267028]
[1749493349821,4.77764296,156.55,156.53,12.54267028]
[1749493350126,20.46901908,156.58,156.53,12.54267028]
[1749493350309,4.77758171,156.57,156.53,18.93121863]
[1749493350500,4.77758171,156.56,156.53,18.93121863]
[1749493350703,20.46901908,156.58,156.53,18.93121863]
[1749493351025,4.77716923,156.57,156.53,18.93121863]
[1749493351236,4.77716923,156.56,156.53,12.54267028]
[1749493351402,20.46901908,156.58,156.53,12.54267028]
[1749493351604,4.77723998,156.57,156.53,12.54267028]
[1749493351808,4.77723998,156.56,156.52,16.60885781]
[1749493352124,4.77723998,156.55,156.52,22.76267028]
[1749493352300,12.54267028,156.56,156.52,22.76267028]
[1749493352622,4.77732715,156.55,156.52,22.76267028]
[1749493352917,12.54267028,156.56,156.52,22.76267028]
[1749493353126,4.77726081,156.55,156.52,29.15161818]
[1749493353302,12.54267028,156.57,156.52,29.15161818]
[1749493353505,4.77703398,156.56,156.52,29.15161818]
[1749493353719,12.54267028,156.57,156.52,29.15161818]
[1749493353720,18.92967107,156.57,156.52,29.15161818]
[1749493353926,4.776569,156.56,156.52,29.15161818]
[1749493354120,18.92967107,156.57,156.52,29.15161818]
[1749493354320,4.77641409,156.56,156.52,29.15161818]
[1749493354495,18.92967107,156.57,156.52,29.15161818]
[1749493354699,4.77640662,156.56,156.52,29.15161818]
[1749493354922,18.92967107,156.57,156.52,29.15161818]
[1749493355122,23.70594612,156.56,156.52,10.22]
[1749493355321,4.77588112,156.55,156.52,22.76267028]
[1749493355504,18.930065,156.56,156.52,22.76267028]
[1749493355918,4.77525764,156.55,156.52,22.76267028]
[1749493356118,18.930065,156.56,156.52,22.76267028]
[1749493356412,18.929717,156.57,156.52,29.15162765]
[1749493356617,4.77491246,156.56,156.52,29.15162765]
[1749493356819,18.929717,156.57,156.52,29.15162765]
[1749493357029,4.77448656,156.56,156.52,29.15162765]
[1749493357235,4.77464018,156.55,156.52,29.15162765]
[1749493357451,18.929717,156.57,156.52,29.15162765]
[1749493357732,17.31712453,156.56,156.52,22.76267028]
[1749493357935,4.77445425,156.55,156.52,29.15160542]
[1749493358110,12.54267028,156.56,156.52,29.15160542]
[1749493359234,1.5398,156.58,156.53,12.54267028]
[1749493359427,17.31589916,156.57,156.53,12.54267028]
[1749493359636,12.54267028,156.59,156.55,12.54267028]
[1749493359842,4.77286007,156.58,156.56,12.54267028]
[1749493360010,1.5191,156.61,156.56,12.54267028]
[1749493360011,4.77286007,156.6,156.56,12.54267028]
[1749493360222,4.77286007,156.59,156.56,12.54267028]
[1749493360530,12.54267028,156.6,156.56,12.54267028]
[1749493360731,4.76982837,156.59,156.56,12.54267028]
[1749493360936,12.54267028,156.6,156.56,12.54267028]
[1749493361130,4.76980903,156.59,156.56,18.92997387]
[1749493361337,4.76968691,156.6,156.57,12.54267028]
[1749493361517,47.93036339,156.64,156.57,22.76267028]
[1749493361518,18.92763118,156.62,156.57,22.76267028]
[1749493361718,4.76768393,156.61,156.58,12.54267028]
[1749493362018,4.76768393,156.6,156.58,12.54267028]
[1749493362205,4.76768393,156.6,156.57,10.22]
[1749493362206,4.76768393,156.61,156.57,22.76267028]
[1749493362411,4.76768393,156.6,156.57,22.76267028]
[1749493362631,4.76768393,156.61,156.57,22.76267028]
[1749493363037,4.76768393,156.61,156.57,29.14935715]
[1749493364415,11.15300112,156.61,156.57,22.76267028]
[1749493364810,18.92798747,156.61,156.57,22.76267028]
[1749493365232,23.6956714,156.61,156.57,22.76267028]
[1749493365536,18.92798747,156.61,156.57,22.76267028]
[1749493365915,23.6956714,156.61,156.57,22.76267028]
[1749493366115,18.92798747,156.61,156.57,10.22]
[1749493366340,18.92798747,156.61,156.57,22.76267028]
[1749493368020,18.92798747,156.61,156.57,10.22]
[1749493370016,6.38497955,156.62,156.57,29.14949628]
[1749493370223,18.92764983,156.62,156.57,29.14949628]
[1749493370841,18.92764983,156.62,156.58,12.54267028]
[1749493371631,6.38459916,156.63,156.58,12.54267028]
[1749493371830,12.54267028,156.63,156.59,12.54267028]
[1749493372147,44.92691559,156.64,156.59,12.54267028]
[1749493372449,12.54267028,156.63,156.59,39.26]
[1749493372937,32.38424531,156.64,156.59,39.26]
[1749493373138,12.54267028,156.63,156.59,39.26]
[1749493374344,18.92740686,156.63,156.59,39.26]
[1749493376815,6.38422469,156.64,156.59,51.80267028]
[1749493377022,4.76768393,156.66,156.62,12.54267028]
[1749493377232,18.92567838,156.67,156.63,12.54267028]
[1749493377544,6.3830081,156.67,156.63,51.78267028]
[1749493377934,18.92525622,156.68,156.64,12.54267028]
[1749493378737,18.92472266,156.69,156.64,12.54267028]
[1749493378938,12.54267028,156.66,156.63,39.24]
[1749493380149,6.38365783,156.65,156.63,39.24]
[1749493381060,12.54267028,156.64,156.63,39.24]
[1749493381228,19.56945267,156.64,156.62,10.22]
[1749493381931,6.38365783,156.65,156.62,10.22]
[1749493382134,15.9573785,156.67,156.62,10.22]
[1749493382135,22.34022141,156.67,156.62,10.22]
[1749493382332,6.38284291,156.67,156.62,10.22]
[1749493382654,19.56945267,156.66,156.62,29.78945267]
[1749493382949,25.95229558,156.67,156.62,29.78945267]
[1749493383451,19.56945267,156.66,156.62,29.78945267]
[1749493383949,25.95280079,156.66,156.62,29.78945267]
[1749493385742,25.95246405,156.67,156.62,36.17432363]
[1749493385939,25.95204408,156.68,156.63,25.9538289]
[1749493386262,19.56945267,156.67,156.63,19.56945267]
[1749493387259,22.33868025,156.68,156.62,29.78945267]
[1749493387437,19.56945267,156.66,156.62,29.78945267]
[1749493388258,6.38365783,156.65,156.62,29.78945267]
[1749493390546,19.56945267,156.67,156.62,29.78945267]
[1749493391448,25.95229558,156.67,156.62,29.78945267]
[1749493391641,19.56945267,156.66,156.62,29.78945267]
[1749493392344,6.38365783,156.65,156.62,29.78945267]
[1749493394878,25.95270302,156.66,156.62,29.78945267]
[1749493396574,6.38325035,156.66,156.62,29.78945267]
[1749493396886,25.95270302,156.66,156.62,29.78945267]
[1749493397655,11.13534442,156.66,156.62,29.78945267]
[1749493397860,6.38325035,156.66,156.63,19.56945267]
[1749493398376,6.3829956,156.67,156.63,19.56945267]
[1749493400579,6.3829956,156.67,156.64,19.56945267]
[1749493400769,6.3829956,156.67,156.64,58.78945267]
[1749493400966,4.75209407,156.69,156.64,58.78945267]
[1749493401175,15.95413015,156.7,156.64,58.78945267]
[1749493401176,30.70411868,156.68,156.64,58.78945267]
[1749493401477,25.95202461,156.68,156.64,58.78945267]
[1749493401656,30.70411868,156.68,156.64,39.22]
[1749493401859,25.95202461,156.68,156.64,58.78945267]
[1749493402063,30.70411868,156.68,156.64,58.78945267]
[1749493402269,25.95202461,156.68,156.64,58.78945267]
[1749493402462,30.70411868,156.68,156.64,58.78945267]
[1749493402662,25.95202461,156.68,156.64,58.78945267]
[1749493403064,4.76330624,156.69,156.66,19.56945267]
[1749493403266,6.38162093,156.7,156.66,19.56945267]
[1749493403459,4.76280855,156.69,156.67,19.56945267]
[1749493403664,6.38162093,156.7,156.67,19.56945267]
[1749493404258,11.14487202,156.7,156.67,19.56945267]
[1749493404574,6.38162093,156.7,156.67,19.56945267]
[1749493404774,11.14396663,156.7,156.67,19.56945267]
[1749493404990,6.38162093,156.7,156.67,19.56945267]
[1749493407556,4.76240934,156.7,156.67,29.76945267]
[1749493407760,19.56945267,156.72,156.67,29.76945267]
[1749493407977,4.76240934,156.71,156.67,29.76945267]
[1749493408187,6.38039941,156.73,156.67,36.15222205]
[1749493408480,24.33194389,156.72,156.68,39.22]
[1749493408781,11.14386638,156.71,156.68,39.22]
[1749493408991,25.95082783,156.71,156.68,39.22]
[1749493410186,30.71281965,156.71,156.68,39.22]
[1749493410394,25.95082783,156.71,156.68,39.22]
[1749493411073,30.71281965,156.71,156.68,39.22]
[1749493411282,12.5132789,156.69,156.67,10.2]
[1749493411466,12.5132789,156.68,156.63,10.2]
[1749493411671,12.5132789,156.66,156.63,10.2]
[1749493411873,12.5132789,156.65,156.63,10.2]
[1749493412363,18.89726807,156.65,156.63,10.2]
[1749493413283,25.95138624,156.65,156.63,10.2]
[1749493417581,30.7198652,156.65,156.63,10.2]
[1749493417776,25.95138624,156.65,156.63,10.2]
[1749493417988,19.56739707,156.64,156.63,10.2]
[1749493418689,25.95138624,156.65,156.63,10.2]
[1749493418890,19.56739707,156.64,156.63,10.2]
[1749493420292,25.95146244,156.64,156.63,10.2]
[1749493420592,30.72238527,156.64,156.63,10.2]
[1749493420794,30.72324736,156.64,156.63,10.2]
[1749493420968,30.72324736,156.64,156.59,10.2]
[1749493421170,19.56739707,156.62,156.6,39.22]
[1749493421999,24.33985883,156.63,156.6,39.22]
[1749493422198,19.56739707,156.63,156.6,39.22]
[1749493422401,25.95211178,156.63,156.59,68.98739707]
[1749493422572,25.95211178,156.63,156.59,49.42]
[1749493423685,19.56739707,156.63,156.59,68.98739707]
[1749493424000,6.38380982,156.65,156.6,19.56739707]
[1749493424201,25.95120689,156.65,156.6,19.56739707]
[1749493424386,4.77160758,156.64,156.6,25.95308335]
[1749493424580,25.95120689,156.65,156.6,25.95308335]
[1749493424803,4.77170743,156.64,156.6,25.95308335]
[1749493425013,25.95120689,156.65,156.6,19.56739707]
[1749493425199,24.3390436,156.64,156.6,19.56739707]
[1749493425384,19.56739707,156.64,156.6,19.56739707]
[1749493426006,19.56739707,156.64,156.61,10.2]
[1749493426709,19.56739707,156.66,156.61,55.76739707]
[1749493426884,15.95707669,156.68,156.61,55.76739707]
[1749493426885,24.33894064,156.65,156.61,55.76739707]
[1749493427080,19.56739707,156.65,156.61,55.76739707]
[1749493427793,25.95111398,156.65,156.61,55.76739707]
[1749493429010,25.95073562,156.66,156.61,62.15262067]
[1749493429217,6.3820282,156.69,156.63,19.56739707]
[1749493429395,19.56739707,156.67,156.63,58.78739707]
[1749493429786,24.3388132,156.66,156.63,39.22]
[1749493429980,19.56739707,156.66,156.63,39.22]
[1749493431795,25.95070908,156.66,156.63,39.22]
[1749493433201,19.56739707,156.66,156.63,39.22]
[1749493434319,6.38301902,156.67,156.63,39.22]
[1749493434518,25.95041609,156.67,156.63,39.22]
[1749493437101,4.77194848,156.66,156.63,39.22]
[1749493437306,25.95041609,156.67,156.63,39.22]
[1749493437509,4.77231916,156.66,156.63,39.22]
[1749493437708,25.95041609,156.67,156.63,39.22]
[1749493438023,24.33966675,156.66,156.63,39.22]
[1749493438214,19.56739707,156.66,156.63,39.22]
[1749493438814,6.38365783,156.65,156.63,39.22]
[1749493444131,25.95080709,156.66,156.63,39.22]
[1749493444934,25.95042412,156.67,156.63,39.22]
[1749493445311,4.77271802,156.66,156.63,39.22]
[1749493445521,25.95042412,156.67,156.63,39.22]
[1749493445831,4.77257012,156.66,156.63,39.22]
[1749493446015,25.95042412,156.67,156.63,49.42]
[1749493446729,4.77258789,156.66,156.63,49.42]
[1749493446932,25.95042412,156.67,156.63,49.42]
[1749493447233,11.15608134,156.66,156.63,49.42]
[1749493447432,6.38349345,156.66,156.63,49.42]
[1749493449431,12.52061736,156.67,156.63,49.42]
[1749493449623,4.77327519,156.66,156.63,49.42]
[1749493449824,12.52061736,156.67,156.63,49.42]
[1749493450020,4.77335435,156.66,156.63,49.42]
[1749493450334,12.52061736,156.67,156.63,49.42]
[1749493450506,4.77368439,156.66,156.63,49.42]
[1749493450710,12.52061736,156.67,156.63,49.42]
[1749493450912,4.77367738,156.66,156.63,49.42]
[1749493451138,12.52061736,156.67,156.63,49.42]
[1749493451322,4.77380037,156.66,156.63,49.42]
[1749493451521,12.52061736,156.67,156.63,49.42]
[1749493451721,4.77410281,156.66,156.63,49.42]
[1749493451924,12.52061736,156.67,156.63,49.42]
[1749493452130,4.77410276,156.66,156.63,49.42]
[1749493452441,12.52061736,156.67,156.63,49.42]
[1749493452607,4.77453,156.66,156.63,49.42]
[1749493452806,12.52061736,156.67,156.63,49.42]
[1749493453029,4.77447197,156.66,156.63,49.42]
[1749493453229,12.52061736,156.67,156.63,49.42]
[1749493453436,6.38365783,156.65,156.63,49.42]
[1749493455433,6.38325035,156.66,156.63,49.42]
[1749493455633,4.77864691,156.65,156.63,39.22]
[1749493455837,6.38325035,156.66,156.63,39.22]
[1749493456635,4.77904443,156.65,156.63,39.22]
[1749493456938,6.38325035,156.66,156.63,39.22]
[1749493457234,4.77904443,156.65,156.63,39.22]
[1749493457432,18.90386771,156.66,156.63,39.22]
[1749493457635,4.77902419,156.65,156.63,39.22]
[1749493457806,18.90386771,156.66,156.63,39.22]
[1749493458009,4.77902419,156.65,156.63,39.22]
[1749493458209,18.90386771,156.66,156.63,39.22]
[1749493458430,4.77909555,156.65,156.63,39.22]
[1749493458633,6.38325035,156.66,156.63,39.22]
[1749493461934,4.77884105,156.65,156.63,39.22]
[1749493462239,6.38325035,156.66,156.63,39.22]
[1749493462428,4.77895453,156.65,156.63,39.22]
[1749493462626,6.38325035,156.66,156.63,39.22]
[1749493462829,4.77891659,156.65,156.63,39.22]
[1749493463030,6.38325035,156.66,156.63,39.22]
[1749493463436,4.77901014,156.65,156.63,39.22]
[1749493463619,6.38325035,156.66,156.63,39.22]
[1749493464442,4.77910673,156.65,156.63,39.22]
[1749493464742,6.38325035,156.66,156.63,39.22]
[1749493464943,4.77912434,156.65,156.63,39.22]
[1749493465143,6.38325035,156.66,156.63,39.22]
[1749493465841,4.77927085,156.65,156.63,39.22]
[1749493466044,6.38325035,156.66,156.63,39.22]
[1749493466220,4.77936744,156.65,156.63,39.22]
[1749493466546,6.38325035,156.66,156.63,39.22]
[1749493466721,4.78016261,156.65,156.63,39.22]
[1749493466923,6.38325035,156.66,156.63,39.22]
[1749493467142,4.78016261,156.65,156.63,39.22]
[1749493467333,6.38325035,156.66,156.63,39.22]
[1749493467547,4.78145471,156.65,156.63,39.22]
[1749493467742,6.38325035,156.66,156.63,39.22]
[1749493468044,4.78139654,156.65,156.63,39.22]
[1749493468343,6.38325035,156.66,156.63,39.22]
[1749493468549,4.78241428,156.65,156.63,39.22]
[1749493468850,6.38325035,156.66,156.63,39.22]
[1749493469024,4.78232568,156.65,156.63,39.22]
[1749493469345,6.38325035,156.66,156.63,39.22]
[1749493469541,4.78291775,156.65,156.63,39.22]
[1749493469740,6.38284291,156.67,156.63,39.22]
[1749493469943,4.7829146,156.66,156.63,39.22]
[1749493470146,4.7829146,156.65,156.63,49.4]
[1749493470452,6.38284291,156.67,156.63,49.4]
[1749493470748,4.78375067,156.66,156.63,49.4]
[1749493470932,4.78375067,156.65,156.63,49.4]
[1749493471137,18.90346027,156.67,156.63,49.4]
[1749493471138,4.78375067,156.64,156.63,49.4]
[1749493471377,18.90346027,156.67,156.63,49.4]
[1749493471524,4.78485315,156.66,156.63,49.4]
[1749493471847,4.78485315,156.65,156.63,49.4]
[1749493472050,18.90346027,156.67,156.63,49.4]
[1749493472347,4.78485471,156.66,156.63,49.4]
[1749493472521,4.78485471,156.65,156.63,49.4]
[1749493472722,18.90346027,156.67,156.63,49.4]
[1749493472924,4.78523234,156.66,156.63,49.4]
[1749493473151,4.78523234,156.65,156.63,49.4]
[1749493473453,18.90346027,156.67,156.63,49.4]
[1749493473651,4.78588297,156.66,156.63,49.4]
[1749493473865,4.78588297,156.65,156.63,49.4]
[1749493474030,18.90346027,156.67,156.63,49.4]
[1749493474232,4.78591373,156.66,156.63,49.4]
[1749493474441,18.90346027,156.67,156.63,49.4]
[1749493474442,4.78591373,156.65,156.63,49.4]
[1749493474644,18.90346027,156.67,156.63,49.4]
[1749493474950,11.16944529,156.66,156.63,49.4]
[1749493475254,4.78581962,156.65,156.63,49.4]
[1749493475448,6.38362567,156.66,156.63,49.4]
[1749493475652,4.78596676,156.65,156.63,49.4]
[1749493475837,4.78596676,156.64,156.63,49.4]
[1749493479034,34.85914173,156.68,156.63,49.4]
[1749493479356,4.78598385,156.67,156.65,12.52061736]
[1749493479528,4.78598385,156.66,156.65,12.52061736]
[1749493481955,6.38191069,156.7,156.65,12.52061736]
[1749493482152,4.78443377,156.69,156.67,12.52061736]
[1749493482348,4.78443377,156.68,156.67,12.52061736]
[1749493483263,4.78443377,156.68,156.66,51.70061736]
[1749493483451,6.3816279,156.7,156.66,51.70061736]
[1749493483765,4.78234537,156.69,156.66,39.18]
[1749493483964,4.78234537,156.68,156.66,51.70061736]
[1749493484170,6.38217173,156.69,156.66,51.70061736]
[1749493484340,4.78149927,156.68,156.66,51.70061736]
[1749493486398,6.3812137,156.71,156.66,51.70061736]
[1749493486538,17.30118877,156.7,156.66,51.70061736]
[1749493486741,4.78057141,156.69,156.66,51.70061736]
[1749493486950,4.78057141,156.68,156.66,51.70061736]
[1749493487150,12.52061736,156.7,156.66,51.70061736]
[1749493487371,4.78000837,156.69,156.66,51.70061736]
[1749493487554,4.78000837,156.68,156.66,51.70061736]
[1749493487857,18.90262874,156.7,156.66,51.70061736]
[1749493488172,4.7800471,156.69,156.66,51.70061736]
[1749493488356,4.7800471,156.68,156.66,51.70061736]
[1749493488549,18.90262874,156.7,156.66,51.70061736]
[1749493488750,4.77965541,156.69,156.66,51.70061736]
[1749493488965,4.77965541,156.68,156.66,51.70061736]
[1749493489162,4.77965541,156.67,156.66,51.70061736]
[1749493489365,6.38210921,156.69,156.66,51.70061736]
[1749493489569,4.77957949,156.68,156.66,39.18]
[1749493489870,6.38210921,156.69,156.66,51.70061736]
[1749493490066,4.77963759,156.68,156.66,51.70061736]
[1749493490269,4.77963759,156.67,156.66,51.70061736]
[1749493491775,6.38210921,156.69,156.66,51.70061736]
[1749493492076,4.77897398,156.68,156.66,51.70061736]
[1749493492248,6.38210921,156.69,156.66,51.70061736]
[1749493492570,4.77873564,156.68,156.66,51.70061736]
[1749493492750,6.38169621,156.7,156.66,51.70061736]
[1749493492951,4.77877181,156.69,156.66,51.70061736]
[1749493493162,4.77877181,156.68,156.66,51.70061736]
[1749493493367,6.38169621,156.7,156.66,51.70061736]
[1749493493565,11.16038858,156.69,156.66,51.70061736]
[1749493493763,4.77832929,156.68,156.66,51.70061736]
[1749493493966,6.38205929,156.69,156.66,51.70061736]
[1749493494160,4.77832484,156.68,156.66,51.70061736]
[1749493494361,6.38205929,156.69,156.66,51.70061736]
[1749493494577,4.7780613,156.68,156.66,51.70061736]
[1749493494872,18.90230757,156.7,156.66,51.70061736]
[1749493495051,4.77807658,156.69,156.66,51.70061736]
[1749493495253,4.77807658,156.68,156.66,58.08375175]
[1749493495553,18.90197913,156.71,156.66,51.70061736]
[1749493495753,4.77771113,156.7,156.66,51.70061736]
[1749493495970,4.77771113,156.69,156.66,51.70061736]
[1749493496170,18.90197913,156.71,156.66,51.70061736]
[1749493496373,4.77721998,156.7,156.67,12.52061736]
[1749493496569,4.77721998,156.69,156.67,12.52061736]
[1749493496768,18.90197913,156.71,156.67,12.52061736]
[1749493496957,17.2976883,156.7,156.66,51.70061736]
[1749493497156,4.77707094,156.69,156.66,51.70061736]
[1749493497365,12.52061736,156.7,156.66,51.70061736]
[1749493497563,4.77655266,156.69,156.66,51.70061736]
[1749493497771,12.52061736,156.7,156.66,51.70061736]
[1749493497973,4.77656797,156.69,156.66,51.70061736]
[1749493498281,12.52061736,156.7,156.66,51.70061736]
[1749493498473,18.90241394,156.7,156.66,51.70061736]
[1749493499357,4.77549825,156.69,156.66,51.70061736]
[1749493499675,18.90241394,156.7,156.66,51.70061736]
[1749493499874,4.77571108,156.69,156.66,51.70061736]
[1749493500059,6.38179658,156.7,156.66,51.70061736]
[1749493500259,4.77560612,156.69,156.66,51.70061736]
[1749493500459,6.38179658,156.7,156.66,61.88061736]
[1749493500669,4.77560769,156.69,156.66,61.88061736]
[1749493500863,6.38080653,156.72,156.67,12.52061736]
[1749493501065,4.77530522,156.71,156.67,12.52061736]
[1749493501273,4.77530522,156.7,156.67,12.52061736]
[1749493501589,4.77530522,156.7,156.66,49.36]
[1749493501590,6.38080653,156.72,156.68,12.52061736]
[1749493501898,4.77505491,156.71,156.68,12.52061736]
[1749493502200,4.77505491,156.7,156.67,12.52061736]
[1749493502352,4.77484217,156.69,156.66,49.36]
[1749493502558,18.9023724,156.7,156.66,61.88061736]
[1749493502774,4.77471537,156.69,156.66,61.88061736]
[1749493503090,4.77505482,156.68,156.66,49.36]
[1749493503260,12.52061736,156.68,156.66,49.36]
[1749493503458,12.52061736,156.68,156.66,10.18]
[1749493503762,12.52061736,156.69,156.66,49.36]
[1749493503959,4.77535893,156.68,156.66,49.36]
[1749493504187,12.52061736,156.69,156.66,49.36]
[1749493504402,6.38175504,156.7,156.66,61.88061736]
[1749493504693,4.77478209,156.69,156.66,61.88061736]
[1749493504870,6.38175504,156.7,156.66,61.88061736]
[1749493505213,12.52061736,156.71,156.66,68.26384604]
[1749493505214,4.77484344,156.69,156.66,68.26384604]
[1749493505380,6.38137956,156.71,156.66,61.88061736]
[1749493505381,18.90199692,156.71,156.66,61.88061736]
[1749493505577,4.77467922,156.7,156.66,61.88061736]
[1749493505894,4.77467922,156.69,156.66,61.88061736]
[1749493506098,12.52061736,156.7,156.66,49.36]
[1749493506282,4.77465709,156.69,156.66,49.36]
[1749493506479,12.52061736,156.7,156.66,49.36]
[1749493506812,4.77468263,156.69,156.66,49.36]
[1749493507020,6.38206483,156.69,156.66,49.36]
[1749493508193,12.52061736,156.7,156.66,49.36]
[1749493508194,18.90237223,156.7,156.66,49.36]
[1749493508408,4.77489613,156.69,156.66,61.88061736]
[1749493508582,6.38175487,156.7,156.66,61.88061736]
[1749493508783,4.77466614,156.69,156.66,61.88061736]
[1749493509084,6.38175487,156.7,156.66,61.88061736]
[1749493509299,4.77468954,156.69,156.66,61.88061736]
[1749493509602,6.38175487,156.7,156.66,61.88061736]
[1749493509901,4.77461752,156.69,156.66,61.88061736]
[1749493510103,6.38175487,156.7,156.66,61.88061736]
[1749493510297,4.77466166,156.69,156.66,61.88061736]
[1749493510497,6.38175487,156.7,156.66,61.88061736]
[1749493510676,5.95677834,156.73,156.68,38.52061736]
[1749493510884,1.6585,156.86,156.76,18.64964886]
[1749493510885,18.4773957,156.84,156.76,18.64964886]
[1749493511186,18.4773957,156.84,156.78,12.52061736]
[1749493511428,12.52061736,156.83,156.78,12.52061736]
[1749493511983,12.52061736,156.81,156.78,39.16]
[1749493513290,18.89779972,156.81,156.78,39.16]
[1749493514799,22.59863617,156.85,156.78,39.16]
[1749493515103,12.52061736,156.81,156.78,39.16]
[1749493517085,18.89804764,156.81,156.78,39.16]
[1749493517298,38.52061736,156.86,156.8,12.52061736]
[1749493517488,26.0,156.86,156.82,12.52061736]
[1749493517692,26.0,156.86,156.82,51.68061736]
[1749493518016,38.52061736,156.86,156.82,39.16]
[1749493518503,44.89587402,156.86,156.82,39.16]
[1749493518700,32.37525666,156.86,156.82,39.16]
[1749493518889,44.89587402,156.86,156.82,39.16]
[1749493520208,32.37525666,156.86,156.82,39.16]
[1749493520514,44.89587402,156.86,156.82,39.16]
[1749493521200,32.37525666,156.86,156.82,39.16]
[1749493521403,44.89587402,156.86,156.82,51.68061736]
[1749493521597,0.9017677,156.87,156.82,45.53670879]
[1749493521784,0.9017677,156.87,156.84,12.52061736]
[1749493522620,0.9017677,156.87,156.83,12.52061736]
[1749493522816,7.27652669,156.87,156.82,39.16]
[1749493523113,7.27652669,156.87,156.83,12.52061736]
[1749493523416,0.9017677,156.87,156.86,12.52061736]
[1749493523611,0.9017677,156.87,156.84,12.52061736]
[1749493524505,7.27647286,156.87,156.82,39.16]
[1749493524686,7.27647286,156.87,156.84,12.52061736]
[1749493525690,19.79709022,156.87,156.83,12.52061736]
[1749493526311,7.27647286,156.87,156.84,12.52061736]
[1749493528842,7.27647286,156.87,156.82,45.53658066]
[1749493528843,19.79709022,156.87,156.82,39.16]
[1749493528993,12.52061736,156.86,156.81,39.18]
[1749493529317,12.52061736,156.85,156.81,39.18]
[1749493529515,12.52061736,156.85,156.81,51.70061736]
[1749493530013,6.3759245,156.84,156.81,51.70061736]
[1749493531906,18.89572892,156.86,156.82,12.52061736]
[1749493532111,6.37511156,156.86,156.82,12.52061736]
[1749493532624,18.89572892,156.86,156.82,12.52061736]
[1749493534721,12.52061736,156.85,156.81,51.70061736]
[1749493535098,12.52061736,156.84,156.8,61.86061736]
[1749493536128,12.52061736,156.81,156.8,10.18]
[1749493536450,12.52061736,156.81,156.73,6.19]
[1749493536451,22.32142857,156.8,156.73,16.39]
[1749493536610,12.52061736,156.76,156.73,49.38]
[1749493536924,12.52061736,156.76,156.73,10.2]
[1749493537302,19.53966269,156.76,156.73,10.2]
[1749493537522,25.91894385,156.76,156.73,10.2]
[1749493538098,6.37928116,156.76,156.73,10.2]
[1749493538298,25.91894385,156.76,156.73,10.2]
[1749493538827,19.53966269,156.78,156.73,29.73966269]
[1749493539500,19.53966269,156.77,156.73,10.2]
[1749493540600,19.53966269,156.76,156.73,10.2]
[1749493540927,25.91894841,156.76,156.73,10.2]
[1749493541104,19.53966269,156.74,156.73,10.2]
[1749493542401,19.53966269,156.74,156.71,36.76]
[1749493542606,19.53966269,156.73,156.71,36.76]
[1749493542824,19.53966269,156.72,156.69,10.2]
[1749493543056,19.53966269,156.71,156.69,10.2]
[1749493548847,25.92048755,156.72,156.69,10.2]
[1749493549861,19.53966269,156.71,156.69,10.2]
[1749493551435,22.32854863,156.75,156.69,10.2]